[Event "61st Mongolian-ch Open 2023"]
[Site "Khovd"]
[Date "2023.05.26"]
[Round "7.5"]
[White "Munkhgal, Gombosuren"]
[Black "Erdene, Ganzorig"]
[Result "1-0"]
[ECO "A62"]
[WhiteElo "2463"]
[BlackElo "2278"]
[Annotator "TA"]
[PlyCount "81"]
[EventDate "2023.05.22"]
[EventType "tourn"]
[EventCountry "MGL"]
[SourceTitle "playchess.com"]
[Source "ChessBase"]
[SourceQuality "1"]
[TimeControl "40/5400+30:1800+30"]

{[%evp 21,81,37,35,22,69,85,159,166,194,185,253,167,175,162,220,214,214,226,220,209,214,215,209,182,244,244,232,228,240,235,163,87,70,68,108,105,97,97,117,115,109,95,77,0,117,113,116,119,113,116,123,102,319,304,420,394,1027,906,12812,498,29993,29994]} 1. d4 {[%emt 0:00:08]} Nf6 {[%emt 0:00:05]} 2. c4 {[%emt 0:00:05]} g6 {[%emt 0:00:03]} 3. g3 {[%emt 0:00:05]} Bg7 {[%emt 0:03:00]} 4. Bg2 {[%emt 0:00:11]} c5 {[%emt 0:00:05]} 5. d5 {[%emt 0:00:19]} d6 {[%emt 0:00:10]} 6. Nc3 {[%emt 0:00:07]} O-O {[%emt 0:00:06]} 7. Nf3 {[%emt 0:01:11]} e6 {[%emt 0:00:07]} 8. O-O {[%emt 0:00:11]} exd5 {[%emt 0:00:06]} 9. cxd5 {[%emt 0:00:04]} a6 {[%emt 0:02:49]} 10. a4 {[%emt 0:00:08]} Re8 {[%emt 0:00:15]} 11. Bf4 {[%emt 0:00:59] Recently 11.Re1 got a lot of attention.} Nh5 {[%emt 0:06:23]} 12. Bg5 {[%emt 0:00:14] A62: Modern Benoni: Fianchetto Variation without early ...Nbd7.} Bf6 {[%emt 0:01:04]} (12... Qc7 $11) 13. Bxf6 $14 {[%emt 0:09:34]} Qxf6 {[%emt 0:00:12]} (13... Nxf6 $142 14. Nd2 Nbd7) 14. Nd2 $1 $16 {[%emt 0:00:21] [#] White is clearly better.} Qe7 $146 {[%emt 0:08:35]} ({Predecessor:} 14... Nd7 15. Nc4 Qe7 16. Ne4 Ne5 17. Ncxd6 Rd8 18. Nxc8 Raxc8 19. a5 f5 20. d6 Qe6 {1-0 Ksieski,Z (2385)-Hodova,L (2072) Bad Koenigshofen 1st 2003 (8)}) 15. Nc4 {[%emt 0:08:42]} Rd8 {[%emt 0:00:27]} (15... Nd7 $142 16. Ne4 Ne5 17. Ncxd6 Rd8) 16. Nb6 {[%emt 0:07:17]} Ra7 {[%emt 0:00:21]} 17. a5 $36 {[%emt 0:00:06][%mdl 2048] Black is under strong pressure.} Nd7 {[%emt 0:02:28]} (17... Nf6 {is a better defense.} 18. Nc4 Bd7) 18. Nca4 {[%emt 0:00:34]} Nxb6 {[%emt 0:00:57]} 19. Nxb6 {[%emt 0:00:05]} Nf6 {[%emt 0:00:14] [#]} 20. b4 $1 {[%emt 0:02:36][%mdl 512]} Nd7 {[%emt 0:08:59]} 21. bxc5 {[%emt 0:01:02]} Nxc5 {[%emt 0:00:15]} 22. e4 {[%emt 0:00:54]} Bd7 {[%emt 0:02:00]} (22... Nd7 {keeps fighting.} 23. Qd4 Nxb6 {[%mdl 64] Remove Defender} 24. Qxb6 (24. axb6 Ra8 $16) 24... Ra8) 23. Re1 $18 {[%emt 0:00:21]} Bb5 {[%emt 0:00:40]} 24. Re3 {[%emt 0:01:21]} Nd7 {[%emt 0:12:32]} 25. Qd4 {[%emt 0:01:21]} Nxb6 {[%emt 0:00:16]} 26. Qxb6 {[%emt 0:00:04]} ({Better is} 26. axb6 $18 Raa8 27. Rc3) 26... Raa8 $16 {[%emt 0:00:25]} 27. Rc1 {[%emt 0:05:09]} Rac8 {[%emt 0:02:13] Inhibits Rc7.} 28. Rec3 {[%emt 0:00:33]} Rxc3 {[%emt 0:00:20]} 29. Rxc3 {[%emt 0:00:04]} Kg7 {[%emt 0:03:24]} 30. h4 {[%emt 0:01:46]} Qf6 {[%emt 0:06:55]} 31. Rf3 {[%emt 0:06:22]} Qe7 {[%emt 0:03:42]} 32. Rc3 {[%emt 0:03:04] Prevents Rc8} Qf6 {[%emt 0:00:07]} 33. Rc7 {[%emt 0:00:55]} Rb8 {[%emt 0:00:21]} 34. Kh2 {[%emt 0:02:38]} ({But not} 34. Rxb7 $6 Rxb7 35. Qxb7 Qa1+ 36. Kh2 Qxa5 $11) 34... h6 {[%emt 0:05:04]} 35. Qe3 {[%emt 0:01:57] White is much more active.} ({Of course not} 35. Rxb7 $6 Rxb7 36. Qxb7 Qxf2 $11) 35... g5 {[%emt 0:00:42]} 36. h5 {[%emt 0:01:32]} Qd8 $2 {[%emt 0:00:51] [#] This costs Black the game.} (36... g4 $16) 37. Qc3+ $1 $18 {[%emt 0:01:55]} Kg8 {[%emt 0:00:05][%cal Ob5c6]} 38. e5 {[%emt 0:03:37] e6 is the strong threat.} dxe5 {[%emt 0:00:09]} (38... Bc6) 39. Qxe5 {[%emt 0:00:31] Be4 would be deadly.} b6 {[%emt 0:00:39]} 40. d6 {[%emt 0:00:00]} (40. Be4 $142 {[%cal Oe4h7] Threatening mate with Bh7+!} Be8 41. d6) 40... bxa5 {[%emt 0:00:00] [#]} (40... Bd7 $18 41. Bd5 b5 42. Bxf7+ {[%mdl 64] Decoy} Kxf7 43. Qf5+ Ke8 44. Qg6+ Kf8 45. Qxh6+ Kg8) 41. Rxf7 $3 {[%emt 1:12:57][%mdl 576] Decoy.   Weighted Error Value: White=0.31/Black=0.51} 1-0

[Event "61st Mongolian-ch Open 2023"]
[Site "Khovd"]
[Date "2023.05.26"]
[Round "7.6"]
[White "Chinguun, Sumiya"]
[Black "Bilguun, Sumiya"]
[Result "0-1"]
[ECO "B25"]
[WhiteElo "2298"]
[BlackElo "2474"]
[Annotator "TA"]
[PlyCount "60"]
[EventDate "2023.05.22"]
[EventType "tourn"]
[EventCountry "MGL"]
[SourceTitle "playchess.com"]
[Source "ChessBase"]
[SourceQuality "1"]
[TimeControl "40/5400+30:1800+30"]

{[%evp 14,60,0,2,7,-39,-23,-47,-25,-38,-8,-30,-15,-19,-11,-95,-28,-46,-23,-30,-14,-30,-30,-30,-30,-38,-37,-37,-25,-81,-90,-142,-124,-216,-212,-349,-337,-497,-497,-557,-560,-714,-711,-693,-692,-862,-853,-1033,-1033]} 1. e4 {[%emt 0:00:03]} c5 {[%emt 0:00:08]} 2. Nc3 {[%emt 0:00:15]} Nc6 {[%emt 0:00:05]} 3. Nf3 {[%emt 0:00:35]} e5 {[%emt 0:00:06]} 4. d3 {[%emt 0:01:47]} d6 {[%emt 0:00:28]} 5. g3 {[%emt 0:00:43]} g6 {[%emt 0:00:05]} 6. Bg2 {[%emt 0:00:31]} Bg7 {[%emt 0:00:07]} 7. O-O {[%emt 0:02:42]} Nge7 {[%emt 0:00:19]} 8. Nh4 {[%emt 0:10:16]} O-O {[%emt 0:15:14] B25: Closed Sicilian: 3 g3, lines without early Be3.} 9. Kh1 {[%emt 0:10:50] [#]} (9. f4 $11 {feels stronger.}) 9... Rb8 $146 {[%emt 0:06:44]} ({Predecessor:} 9... Nd4 10. Bg5 f6 11. Be3 Rb8 12. f4 b5 13. fxe5 dxe5 14. Nd5 Nxd5 15. exd5 Qd6 {1-0 Kondratenko,A (2182)-Bronnikov,K (2325) Sukhumi op 2008 (8)}) 10. Be3 {[%emt 0:04:52]} Nd4 {[%emt 0:13:52] Black is slightly better.} 11. a4 {[%emt 0:11:24]} Be6 {[%emt 0:00:27]} 12. f4 {[%emt 0:13:28]} exf4 {[%emt 0:03:34]} 13. Bxf4 {[%emt 0:01:23]} Nec6 {[%emt 0:11:02] White must now prevent ...g5.} 14. Qd2 {[%emt 0:02:40] [#]} (14. Nf3 $11) 14... Ne5 {[%emt 0:05:39]} (14... Nb4 $1 $17 15. Rac1 Nbxc2 16. Rxc2 Nxc2 17. Qxc2 g5 18. Bxg5 Qxg5) 15. Nb5 {[%emt 0:03:09]} Ndc6 {[%emt 0:04:19]} (15... Nxb5 {simplifies} 16. axb5 Qb6 17. Ra5 Bd7) 16. Bh6 {[%emt 0:11:19]} (16. Nc3 {simplifies} Qd7 17. Nf3 c4 18. Bh6) 16... a6 {[%emt 0:05:42][%cal Ba7a6,Ba6b5,Bb5b4,Bb4b3,Bb3c2][%mdl 32]} 17. Nc3 {[%emt 0:01:02]} Bxh6 {[%emt 0:01:15]} 18. Qxh6 {[%emt 0:00:14][%cal Oh4f5]} Nd4 {[%emt 0:00:54] Repels Nf5} 19. Qd2 {[%emt 0:01:38]} b5 {[%emt 0:07:32]} 20. axb5 {[%emt 0:02:30]} axb5 {[%emt 0:00:43]} 21. Nd1 {[%emt 0:00:51]} (21. Ne2 $11) 21... b4 $17 {[%emt 0:01:02] Black is more active.} 22. Ne3 {[%emt 0:00:14]} (22. Ra6 $142) 22... Qg5 {[%emt 0:00:06][%cal Od4c2]} 23. Qf2 {[%emt 0:01:24] [#]} (23. Rf2 $17) 23... b3 $1 $19 {[%emt 0:02:10] And now ...bxc2 would win.} 24. Qf4 {[%emt 0:02:10]} (24. c3 {was the only defense.} Nxd3 25. Qd2) 24... h6 {[%emt 0:01:33]} 25. c3 {[%emt 0:05:54]} (25. Nf3 $142 Nexf3 26. c3) 25... Nc2 {[%emt 0:00:32] Black is clearly winning.} (25... Nxd3 $2 {perishes.} 26. Qxg5 hxg5 27. cxd4 cxd4 28. Rad1 dxe3 29. Rxd3 $19) 26. Nxc2 {[%emt 0:05:41]} bxc2 {[%emt 0:00:10]} 27. d4 {[%emt 0:05:48]} cxd4 {[%emt 0:00:26]} 28. cxd4 {[%emt 0:00:10]} Nd3 {[%emt 0:05:29]} 29. Qxd6 {[%emt 0:00:06]} Rbc8 {[%emt 0:01:09]} 30. Qa3 {[%emt 0:01:12]} Qe3 {[%emt 0:01:16] Weighted Error Value: White=0.71/Black=0.10 (very precise)} ({Inferior is} 30... c1=B 31. Qxd3 Bc4 32. Qd1 Bxf1 33. Bxf1 $19) 0-1

[Event "61st Mongolian-ch Open 2023"]
[Site "Khovd"]
[Date "2023.05.27"]
[Round "8.1"]
[White "Enkhnar, Enkhbaatar"]
[Black "Amilal Munkhdalai"]
[Result "0-1"]
[ECO "A18"]
[WhiteElo "2360"]
[BlackElo "2141"]
[Annotator "TA"]
[PlyCount "52"]
[EventDate "2023.05.22"]
[EventType "tourn"]
[EventCountry "MGL"]
[SourceTitle "playchess.com"]
[Source "ChessBase"]
[SourceQuality "1"]
[TimeControl "40/5400+30:1800+30"]

{[%evp 13,52,13,17,27,24,3,18,14,36,0,0,0,0,-31,-26,-19,0,0,0,-24,-18,-62,-46,-107,-83,-89,-110,-104,-58,-85,-72,-110,-107,-413,-426,-29979,-29980,-29980,-29977,-29997,-29998]} 1. c4 {[%emt 0:00:50]} Nf6 {[%emt 0:00:09]} 2. Nc3 {[%emt 0:00:11]} e6 {[%emt 0:00:06]} 3. e4 {[%emt 0:00:08]} d5 {[%emt 0:00:14]} 4. e5 {[%emt 0:00:06]} d4 {[%emt 0:00:13]} 5. exf6 {[%emt 0:00:13]} dxc3 {[%emt 0:00:04]} 6. bxc3 {[%emt 0:00:05]} Qxf6 {[%emt 0:00:06]} 7. Nf3 {[%emt 0:00:09]} c5 $1 {[%emt 0:05:04][%mdl 4] 7...c5 is the modern continuation.} 8. Bd3 {[%emt 0:00:17] A18: English Opening: Flohr-Mikenas System (1 c4 Nf6 2 Nc3 e6 3 e4).} Bd6 {[%emt 0:06:40]} 9. Rb1 {[%emt 0:00:12]} Nc6 {[%emt 0:04:30]} 10. Be4 {[%emt 0:00:40] The position is equal.} e5 {[%emt 0:10:36]} 11. Qa4 {[%emt 0:05:43]} (11. d3 $5 {[%cal Rd1a4]}) 11... O-O {[%emt 0:00:29]} 12. O-O {[%emt 0:00:54] [#]} Bf5 $146 {[%emt 0:08:17]} ({Predecessor:} 12... Kh8 13. Re1 Rb8 14. d4 h6 15. d5 Nd8 16. Qxa7 Qe7 17. Bc2 Qc7 18. Qb6 Re8 19. Ba4 Re7 20. Bc2 Qxb6 21. Rxb6 Bc7 22. d6 {1-0 Sipos,I (2493)-Nikic,P (1967) Split op 5th 2015 (1)}) 13. Bxf5 {[%emt 0:07:40]} Qxf5 {[%emt 0:00:03]} 14. Rxb7 {[%emt 0:00:13]} Rac8 {[%emt 0:04:26]} (14... Qc8 $5 {[%cal Rc8b7]} 15. Rb1 e4 $11) 15. d3 {[%emt 0:01:17]} Qxd3 {[%emt 0:02:54]} 16. Rd1 {[%emt 0:05:01]} Qg6 {[%emt 0:00:35]} 17. Rd7 {[%emt 0:02:54]} Bb8 {[%emt 0:00:47]} 18. Be3 {[%emt 0:08:12]} ({White should play} 18. R7d5 $15) 18... e4 $17 {[%emt 0:02:46]} 19. Ne1 {[%emt 0:05:20]} Ne5 {[%emt 0:08:36] [#] Hoping for ...Ng4.} 20. R7d5 {[%emt 0:00:20]} Ng4 {[%emt 0:07:07]} ({Don't play} 20... Nf3+ 21. Nxf3 (21. Kh1 Nxh2 22. Qd7 f5 $19) 21... exf3 22. g3 $11 (22. Rxc5 $2 Qxg2#)) (20... f5 $17 {aiming for ...Ng4.} 21. Rxc5 Ng4) 21. g3 $1 $15 {[%emt 0:05:16]} f5 {[%emt 0:12:54]} 22. Ng2 {[%emt 0:26:45]} Qh5 $36 {[%emt 0:00:15][%mdl 2048] Black is really pushing.} 23. Nh4 $2 {[%emt 0:04:29][%mdl 8192] This move loses the game for White.} (23. Bxc5 $2 {too greedy.} Qxh2+ 24. Kf1 Qh1+ 25. Ke2 Qxg2 $19) (23. h4 $17) 23... g5 $19 {[%emt 0:00:38]} 24. Nxf5 {[%emt 0:12:55] [#]} (24. Bxg5 $19 Qxg5 25. Qd7) 24... Qxh2+ {[%emt 0:01:32] Black mates.} 25. Kf1 {[%emt 0:00:08]} Nxe3+ {[%emt 0:01:05][%mdl 64] Deflection} 26. fxe3 {[%emt 0:00:06]} Bxg3 {[%emt 0:00:14] Weighted Error Value: White=0.62/Black=0.08 (flawless)} 0-1

[Event "61st Mongolian-ch Open 2023"]
[Site "Khovd"]
[Date "2023.05.27"]
[Round "8.2"]
[White "Amartuvshin, Ganzorig"]
[Black "Munkhzul, Turmunkh"]
[Result "1-0"]
[ECO "E92"]
[WhiteElo "2407"]
[BlackElo "2318"]
[Annotator "TA"]
[PlyCount "127"]
[EventDate "2023.05.22"]
[EventType "tourn"]
[EventCountry "MGL"]
[SourceTitle "playchess.com"]
[Source "ChessBase"]
[SourceQuality "1"]
[TimeControl "40/5400+30:1800+30"]

{[%evp 16,127,32,17,24,29,36,31,42,45,41,0,0,0,0,0,-22,0,0,0,0,-61,-56,-142,76,93,71,25,17,25,14,25,25,30,75,76,84,81,72,70,63,69,93,89,161,156,156,150,207,206,201,200,213,192,203,139,188,235,241,228,330,293,431,381,401,0,397,0,350,339,438,428,399,372,362,332,624,593,811,780,640,617,741,744,741,723,972,961,1006,983,772,772,1092,1054,1398,1322,1164,809,1524,1391,1589,1579,1535,1518,1572,1080,29983,29984,29984,29985,29985,29986,29988,29989]} 1. d4 {[%emt 0:00:30]} Nf6 {[%emt 0:00:19]} 2. c4 {[%emt 0:00:00]} g6 {[%emt 0:00:13]} 3. Nc3 {[%emt 0:00:00]} Bg7 {[%emt 0:00:13]} 4. e4 {[%emt 0:00:00]} d6 {[%emt 0:00:09]} 5. Be2 {[%emt 0:00:04]} O-O {[%emt 0:01:00]} 6. Nf3 {[%emt 0:00:08]} e5 {[%emt 0:00:11]} 7. d5 {[%emt 0:00:10]} a5 {[%emt 0:01:10]} 8. Bg5 {[%emt 0:00:37]} h6 {[%emt 0:00:58]} 9. Be3 {[%emt 0:00:10]} Ng4 {[%emt 0:00:41] E92: King's Indian: Classical: 6 Be2 e5: 7 dxe5, 7 Be3 and Petrosian System without 7...Nbd7.} 10. Bd2 {[%emt 0:00:09]} f5 {[%emt 0:00:15]} 11. h3 {[%emt 0:00:58]} Nf6 {[%emt 0:00:34] White is slightly better.} 12. exf5 {[%emt 0:00:11]} gxf5 {[%emt 0:00:17]} 13. Qc1 {[%emt 0:00:11]} f4 {[%emt 0:00:48]} 14. g3 {[%emt 0:00:18]} e4 $1 {[%emt 0:00:59]} 15. Nh4 {[%emt 0:00:12]} e3 $1 {[%emt 0:00:47][%mdl 64] Deflection} 16. fxe3 {[%emt 0:00:08]} fxg3 {[%emt 0:00:08][%cal Of6e4] Threatens to win with ...Ne4!} 17. Ng6 {[%emt 0:00:12] Against Ne4} Re8 {[%emt 0:00:33]} 18. Qc2 {[%emt 0:00:21]} (18. Nf4 $11) 18... Na6 $1 $15 {[%emt 0:01:00]} (18... g2 19. Rg1 $16) 19. O-O-O {[%emt 0:01:21]} (19. Nf4 $15) 19... Nc5 $2 {[%emt 0:03:18]} (19... Nb4 $1 $17 {[%cal Rb4c2] keeps the pressure on.} 20. Qb1 Ne4 {[%mdl 64] Decoy} 21. Nxe4 Bf5 22. Bxb4 {[%mdl 64] Remove Defender} axb4) 20. Rhg1 $16 {[%emt 0:11:00]} Nfe4 {[%emt 0:13:03] ...Bf5 is the strong threat.} (20... Bxh3 $2 21. Nf4 (21. Rxg3 Qd7 $18) 21... Qd7 22. Nxh3 (22. Rxg3 Bf5 $11) 22... Qxh3 23. Qg6 $18) 21. Nxe4 {[%emt 0:00:34]} (21. Rdf1 $16) 21... Bf5 $11 {[%emt 0:03:42] [#]} 22. Bc3 $146 {[%emt 0:02:18] aiming for Bxg7.} ({Predecessor:} 22. Nxc5 Bxc2 23. Kxc2 dxc5 24. Rdf1 Qd6 25. Nf4 Qb6 26. Bc1 Rf8 27. Rxg3 Rae8 28. Bd3 Rxf4 29. Rxf4 {½-½ Flores,D (2592)-Morovic Fernandez,I (2572) American Continental 12th 2016 (9)}) 22... Bxe4 {[%emt 0:17:15]} (22... Bxg6 $2 23. Rxg3 Nxe4 24. Rxg6 Nxc3 25. Qxc3 $18) 23. Qd2 {[%emt 0:00:11] Chess con chili.} Qg5 {[%emt 0:20:44]} (23... Bxg6 $2 24. Rxg3 Bxc3 25. Qxc3 $18 (25. Rxg6+ Bg7 $11)) 24. Nf4 $1 {[%emt 0:00:39]} Kh8 {[%emt 0:04:14]} 25. Nh5 {[%emt 0:03:13]} Bxc3 {[%emt 0:02:15]} 26. Qxc3+ {[%emt 0:00:46]} Qe5 {[%emt 0:00:23]} 27. Qxe5+ {[%emt 0:01:05]} (27. Qd4 {seems wilder.} Bh7 28. Rxg3 Rf8 29. Nf4) 27... Rxe5 {[%emt 0:02:23]} 28. Rxg3 {[%emt 0:04:17]} Bd3 {[%emt 0:01:36][%mdl 64] Deflection. Black is now going downhill.} 29. Bxd3 {[%emt 0:00:49]} Nxd3+ {[%emt 0:01:26]} (29... Rxh5 $16 30. Bb1 Rg8) 30. Rxd3 $18 {[%emt 0:00:09]} Rxh5 $16 {[%emt 0:00:08][%mdl 4096] Endgame KRR-KRR} 31. Rd4 {[%emt 0:00:33]} Rg8 {[%emt 0:02:06]} (31... Rf8 $16 32. Re4 Rhf5) 32. Rxg8+ $1 $18 {[%emt 0:06:54]} Kxg8 {[%emt 0:00:10] [#] KR-KR} 33. h4 {[%emt 0:00:07]} Re5 {[%emt 0:04:30]} 34. Kd2 {[%emt 0:00:12]} Kf7 {[%emt 0:01:28]} 35. Rg4 {[%emt 0:00:49]} Kf6 {[%emt 0:08:49]} (35... b5 $16 36. e4 (36. cxb5 Rxd5+ 37. Kc3 Rxb5 $11) 36... bxc4) 36. e4 {[%emt 0:00:25]} Kf7 {[%emt 0:02:04]} 37. Kd3 {[%emt 0:01:35]} b6 {[%emt 0:06:40]} (37... c6 $142 38. Rf4+ Ke7) 38. Kd4 {[%emt 0:00:25]} Re7 {[%emt 0:01:39]} (38... Ke8 {was necessary.} 39. Rg7 Kd8) 39. Rf4+ {[%emt 0:00:44]} Kg8 {[%emt 0:00:25]} 40. Rg4+ $2 {[%emt 0:00:00]} (40. b3 $18) 40... Kh7 $2 {[%emt 0:00:00][%mdl 8192]} (40... Kf7 $11 {and Black is okay.}) 41. Rf4 {[%emt 0:03:03]} Kg8 $1 {[%emt 0:02:18]} 42. Rf6 {[%emt 0:03:14]} Rg7 {[%emt 0:03:14]} 43. Rxh6 {[%emt 0:03:04]} Rg2 {[%emt 0:00:35]} 44. Kc3 {[%emt 0:02:56] Strongly threatening Kb3.} Rg3+ {[%emt 0:00:13]} 45. Kc2 {[%emt 0:00:25]} Rg2+ $2 {[%emt 0:00:39]} (45... Rg4 46. Kd3 Kg7) 46. Kb3 {[%emt 0:00:23]} Rg3+ {[%emt 0:11:59] [#]} 47. Ka4 $1 {[%emt 0:00:43]} Rg2 {[%emt 0:00:22]} 48. Ka3 {[%emt 0:00:05]} Rg4 {[%emt 0:05:09]} 49. Re6 {[%emt 0:00:07]} Kf7 {[%emt 0:00:10]} 50. h5 {[%emt 0:00:05][%cal Bh4h5,Bh5h6][%mdl 32]} Rg3+ {[%emt 0:00:17]} 51. b3 {[%emt 0:00:13]} Rh3 {[%emt 0:00:18]} 52. h6 {[%emt 0:00:05]} Rh2 {[%emt 0:00:04]} 53. b4 {[%emt 0:12:41]} axb4+ {[%emt 0:01:36]} 54. Kb3 {[%emt 0:00:06]} Kf8 {[%emt 0:09:04]} 55. Rg6 {[%emt 0:02:32]} Kf7 {[%emt 0:01:31]} 56. Rg7+ {[%emt 0:01:36][%mdl 64] Skewer} Kf6 {[%emt 0:00:07]} 57. e5+ {[%emt 0:00:34]} dxe5 {[%emt 0:01:53]} 58. Rxc7 {[%emt 0:00:08]} e4 {[%emt 0:00:07]} 59. Rc6+ {[%emt 0:00:20]} Ke5 {[%emt 0:00:37]} 60. Re6+ {[%emt 0:00:13]} Kd4 {[%emt 0:00:12]} 61. d6 {[%emt 0:00:10][%cal Bd5d6,Bd6d7][%mdl 32] White mates.} Kc5 {[%emt 0:01:27]} 62. d7 {[%emt 0:00:23]} ({And not} 62. Rxe4 Rh3+ 63. Kb2 Rh2+ 64. Kb3 Rh3+ 65. Kc2 Rh2+ 66. Kd3 Rxh6 $11) 62... Rh3+ {[%emt 0:00:25]} 63. Kc2 {[%emt 0:00:16]} Rc3+ {[%emt 0:00:27]} 64. Kb2 {[%emt 0:00:05] Excellently played by Amartuvshin!   Weighted Error Value: White=0.28 (precise) /Black=0.45} 1-0